fUSD/lending_fUSD_20240212
["ID","MTS","AMOUNT","RATE_DAILY","PERIOD"]
[313821911,1707737441555,-500.0,0.00022676,2]
[313821912,1707737441564,-2154.87,0.00022676,2]
[313821913,1707737441573,-597.48,0.00022676,2]
[313821914,1707737441582,-1711.34,0.00022676,2]
[313821915,1707737441591,-500.0,0.00022676,2]
[313821916,1707737441600,-292.26811384,0.00022676,2]
[313821917,1707737441609,-500.0,0.00022676,2]
[313821918,1707737441619,-1203.26,0.00022676,2]
[313821919,1707737441628,-500.0,0.00022676,2]
[313821920,1707737441637,-625.64,0.00022676,2]
[313821921,1707737441646,-500.0,0.00022676,2]
[313821922,1707737441655,-500.0,0.00022676,2]
[313821923,1707737441665,-2405.05,0.00022676,2]
[313821924,1707737441675,-1075.67,0.00022676,2]
[313821925,1707737441684,-804.88,0.00022676,2]
[313821926,1707737441693,-692.17,0.00022676,2]
[313821927,1707737441703,-562.81,0.00022676,2]
[313821928,1707737441713,-500.0,0.00022676,2]
[313821929,1707737441723,-500.0,0.00022676,2]
[313821930,1707737441733,-640.02578374,0.00022676,2]
[313821931,1707737441746,-49.53421626,0.00022676,2]
[313821932,1707737441755,-419.14571326,0.00022676,2]
[313821933,1707737441767,-80.85428674,0.00022676,2]
[313821934,1707737441776,-408.99284542,0.00022676,2]
[313821935,1707737441801,-91.00715458,0.00022676,2]
[313821936,1707737441811,-395.76329285,0.00022676,2]
[313821937,1707737441829,-104.23670715,0.00022676,2]
[313821938,1707737441838,-761.78,0.00022676,2]
[313821939,1707737441848,-500.0,0.00022676,2]
[313821940,1707737441857,-166.51158071,0.00022676,2]
[313821941,1707737441870,-333.48841929,0.00022676,2]
[313821942,1707737441879,-181.78320659,0.00022676,2]
[313821943,1707737441891,-318.21679341,0.00022676,2]
[313821944,1707737441901,-500.0,0.00022676,2]
[313821945,1707737441910,-500.0,0.00022676,2]
[313821946,1707737441920,-3319.91,0.00022676,2]
[313821947,1707737441929,-500.0,0.00022676,2]
[313821948,1707737441939,-1059.48,0.00022676,2]
[313821949,1707737441948,-500.0,0.00022676,2]
[313821950,1707737441957,-860.12,0.00022676,2]
[313821951,1707737441967,-1053.51,0.00022676,2]
[313821952,1707737441977,-500.0,0.00022676,2]
[313821953,1707737441986,-1159.62,0.00022676,2]
[313821954,1707737441995,-500.0,0.00022676,2]
[313821955,1707737442004,-2198.6,0.00022676,2]
[313821956,1707737442014,-500.0,0.00022676,2]
[313821957,1707737442023,-500.0,0.00022676,2]
[313821958,1707737442033,-500.0,0.00022676,2]
[313821959,1707737442042,-500.0,0.00022676,2]
[313821960,1707737442051,-1018.07,0.00022676,2]
[313821961,1707737442060,-2364.64,0.00022676,2]
[313821962,1707737442070,-3687.56,0.00022676,2]
[313821963,1707737442079,-500.0,0.00022676,2]
[313821964,1707737442088,-500.0,0.00022676,2]
[313821965,1707737442098,-692.69,0.00022676,2]
[313821966,1707737442107,-1261.67,0.00022676,2]
[313821967,1707737442116,-500.0,0.00022676,2]
[313821968,1707737442126,-500.0,0.00022676,2]
[313821969,1707737442135,-500.0,0.00022676,2]
[313821970,1707737442144,-1841.73,0.00022676,2]
[313821971,1707737442154,-500.0,0.00022676,2]
[313821972,1707737442164,-500.0,0.00022676,2]
[313821973,1707737442173,-500.0,0.00022676,2]
[313821974,1707737442183,-1226.74,0.00022676,2]
[313821975,1707737442195,-880.68,0.00022676,2]
[313821976,1707737442204,-500.0,0.00022676,2]
[313821977,1707737442214,-500.0,0.00022676,2]
[313821978,1707737442224,-500.0,0.00022676,2]
[313821979,1707737442234,-1941.49,0.00022676,2]
[313821980,1707737442243,-8759.04,0.00022676,2]
[313821981,1707737442253,-500.0,0.00022676,2]
[313821982,1707737442262,-500.0,0.00022676,2]
[313821983,1707737442273,-500.0,0.00022676,2]
[313821985,1707737442283,-863.35,0.00022676,2]
[313821986,1707737442292,-1033.77,0.00022676,2]
[313821991,1707737442577,-500.0,0.00022676,2]
[313821992,1707737442586,-500.0,0.00022676,2]
[313821993,1707737442595,-2.96269226,0.00022676,2]
[313821994,1707737442608,-887.09730774,0.00022676,2]
[313821995,1707737442617,-101.85363039,0.00022676,2]
[313821996,1707737442628,-399.04636961,0.00022676,2]
[313821997,1707737442637,-500.0,0.00022676,2]
[313821998,1707737442647,-267.54887843,0.00022676,2]
[313821999,1707737442656,-238.22630599,0.00022676,2]
[313822000,1707737442667,-462.22369401,0.00022676,2]
[313822001,1707737442677,-500.0,0.00022676,2]
[313822002,1707737442686,-500.0,0.00022676,2]
[313822003,1707737442695,-518.49,0.00022676,2]
[313822004,1707737442704,-500.0,0.00022676,2]
[313822005,1707737442714,-500.0,0.00022676,2]
[313822006,1707737442726,-500.0,0.00022676,2]
[313822007,1707737442735,-243.10358594,0.00022676,2]
[313822008,1707737442747,-256.89641406,0.00022676,2]
[313822009,1707737442757,-323.02430933,0.00022677,2]
[313822010,1707737442768,-176.97569067,0.00022677,2]
[313822011,1707737442778,-500.0,0.00022677,2]
[313822012,1707737442787,-500.0,0.00022677,2]
[313822013,1707737442797,-397.73278553,0.00022677,2]
[313822014,1707737442806,-500.0,0.00022677,2]
[313822015,1707737442815,-500.0,0.00022677,2]
[313822016,1707737442825,-500.0,0.00022677,2]
[313822017,1707737442834,-500.0,0.00022677,2]
[313822018,1707737442844,-500.0,0.00022677,2]
[313822019,1707737442853,-500.0,0.00022677,2]
[313822020,1707737442863,-631.5606889,0.00022677,2]
[313822021,1707737442872,-500.0,0.00022677,2]
[313822022,1707737442882,-602.03881565,0.00022677,2]
[313822023,1707737442892,-500.0,0.00022677,2]
[313822024,1707737442901,-500.0,0.00022677,2]
[313822025,1707737442910,-356.09733802,0.00022677,2]
[313822027,1707737442919,-500.0,0.00022677,2]
[313822029,1707737442928,-500.0,0.00022677,2]
[313822031,1707737442937,-500.0,0.00022677,2]
[313822033,1707737442947,-500.0,0.00022677,2]
[313822035,1707737442956,-275.35,0.00022677,2]
[313822037,1707737442966,-500.0,0.00022677,2]
[313822039,1707737442976,-344.31379619,0.00022677,2]
[313822041,1707737442986,-640.25172336,0.00022677,2]
[313822043,1707737442996,-500.0,0.00022677,2]
[313822045,1707737443005,-509.43243381,0.00022677,2]
[313822047,1707737443014,-500.0,0.00022677,2]
[313822049,1707737443055,-500.0,0.00022677,2]
[313822051,1707737443064,-554.9063028,0.00022677,2]
[313822053,1707737443074,-500.0,0.00022677,2]
[313822055,1707737443083,-500.0,0.00022677,2]
[313822057,1707737443092,-500.0,0.00022677,2]
[313822058,1707737443101,-170.6,0.00022677,2]
[313822060,1707737443110,-500.0,0.00022677,2]
[313822061,1707737443119,-500.0,0.00022677,2]
[313822063,1707737443128,-500.0,0.00022677,2]
[313822065,1707737443137,-500.0,0.00022677,2]
[313822067,1707737443146,-500.0,0.00022677,2]
[313822069,1707737443155,-500.0,0.00022677,2]
[313822071,1707737443165,-500.0,0.00022677,2]
[313822073,1707737443174,-500.0,0.00022677,2]
[313822075,1707737443183,-500.0,0.00022677,2]
[313822077,1707737443195,-500.0,0.00022677,2]
[313822079,1707737443204,-241.29251784,0.00022677,2]
[313822081,1707737443213,-500.0,0.00022677,2]
[313822083,1707737443223,-500.0,0.00022677,2]
[313822085,1707737443234,-500.0,0.00022677,2]
[313822087,1707737443243,-500.0,0.00022677,2]
[313822089,1707737443251,-500.0,0.00022677,2]
[313822091,1707737443261,-250.0,0.00022677,2]
[313822093,1707737443270,-500.0,0.00022677,2]
[313822095,1707737443281,-500.0,0.00022677,2]
[313822097,1707737443290,-500.0,0.00022677,2]
[313822099,1707737443298,-500.0,0.00022677,2]
[313822101,1707737443307,-500.0,0.00022677,2]
[313822103,1707737443316,-541.20016117,0.00022677,2]
[313822105,1707737443325,-500.0,0.00022677,2]
[313822107,1707737443334,-500.0,0.00022677,2]
[313822108,1707737443343,-500.0,0.00022677,2]
[313822110,1707737443352,-500.0,0.00022677,2]
[313822112,1707737443361,-500.0,0.00022677,2]
[313822114,1707737443370,-500.0,0.00022677,2]
[313822116,1707737443380,-500.0,0.00022677,2]
[313822118,1707737443389,-500.0,0.00022677,2]
[313822120,1707737443398,-500.0,0.00022677,2]
[313822122,1707737443408,-500.0,0.00022677,2]
[313822124,1707737443419,-566.10765229,0.00022677,2]
[313822126,1707737443427,-500.0,0.00022677,2]
[313822128,1707737443436,-500.0,0.00022677,2]
[313822130,1707737443447,-246.65921259,0.00022677,2]
[313822132,1707737443456,-500.0,0.00022677,2]
[313822134,1707737443465,-500.0,0.00022677,2]
[313822136,1707737443476,-500.0,0.00022677,2]
[313822138,1707737443485,-500.0,0.00022677,2]
[313822140,1707737443494,-500.0,0.00022677,2]
[313822142,1707737443503,-1306.34,0.00022677,2]
[313822144,1707737443512,-497.72857645,0.00022677,2]
[313822146,1707737443522,-500.0,0.00022677,2]
[313822148,1707737443531,-500.0,0.00022677,2]
[313822150,1707737443540,-500.0,0.00022677,2]
[313822152,1707737443549,-1846.41,0.00022677,2]
[313822154,1707737443560,-500.0,0.00022677,2]
[313822156,1707737443569,-2091.41,0.00022677,2]
[313822158,1707737443579,-737.39,0.00022677,2]
[313822160,1707737443588,-1301.48,0.00022677,2]
[313822162,1707737443598,-500.0,0.00022677,2]
[313822164,1707737443607,-291.35349578,0.00022677,2]
[313822166,1707737443616,-500.0,0.00022678,2]
[313822168,1707737443625,-500.0,0.00022678,2]
[313822170,1707737443634,-178.18175171,0.00022678,2]
[313822172,1707737443644,-500.0,0.00022678,2]
[313822174,1707737443653,-933.18803407,0.0002285,2]
[313822176,1707737443662,-10000.0,0.00022892,2]
[313822178,1707737443671,-2082.28647701,0.000229,2]
[313822180,1707737443681,-207.11725652,0.000229,2]
[313822182,1707737443690,-3000.0,0.000229,2]
[313822184,1707737443699,-3201.54581084,0.000229,2]
[313822186,1707737443709,-175.25185744,0.000229,2]
[313822188,1707737443718,-684.83445572,0.000229,6]
[313822190,1707737443727,-786.99351634,0.000229,2]
[313822192,1707737443736,-3000.0,0.0002291,2]
[313822194,1707737443746,-3000.0,0.0002292,2]
[313822196,1707737443755,-3000.0,0.0002293,2]
[313822198,1707737443764,-3000.0,0.0002294,2]
[313822200,1707737443773,-204.05359737,0.0002295,2]
[313822202,1707737443782,-3000.0,0.0002295,2]
[313822204,1707737443792,-514.12071097,0.0002295,2]
[313822206,1707737443801,-500.0,0.0002295,2]
[313822208,1707737443810,-572.25,0.0002295,2]
[313822210,1707737443819,-500.0,0.0002295,2]
[313822212,1707737443828,-500.0,0.0002295,2]
[313822214,1707737443838,-500.0,0.0002295,2]
[313822216,1707737443847,-630.37,0.0002295,2]
[313822218,1707737443856,-500.0,0.0002295,2]
[313822220,1707737443865,-500.0,0.0002295,2]
[313822222,1707737443874,-500.0,0.0002295,2]
[313822224,1707737443884,-582.4,0.0002295,2]
[313822226,1707737443893,-500.0,0.0002295,2]
[313822228,1707737443902,-500.0,0.0002295,2]
[313822230,1707737443911,-500.0,0.0002295,2]
[313822232,1707737443920,-500.0,0.0002295,2]
[313822234,1707737443929,-500.0,0.0002295,2]
[313822236,1707737443938,-500.0,0.0002295,2]
[313822238,1707737443948,-500.0,0.0002295,2]
[313822240,1707737443957,-500.0,0.0002295,2]
[313822242,1707737443966,-500.0,0.0002295,2]
[313822244,1707737443976,-500.0,0.0002295,2]
[313822246,1707737443985,-500.0,0.0002295,2]
[313822247,1707737443994,-500.0,0.0002295,2]
[313822249,1707737444003,-500.0,0.0002295,2]
[313822251,1707737444013,-500.0,0.0002295,2]
[313822253,1707737444022,-500.0,0.0002295,2]
[313822255,1707737444031,-500.0,0.0002295,2]
[313822257,1707737444043,-500.0,0.0002295,2]
[313822259,1707737444052,-500.0,0.0002295,2]
[313822261,1707737444061,-500.0,0.0002295,2]
[313822263,1707737444070,-500.0,0.0002295,2]
[313822265,1707737444079,-500.0,0.0002295,2]
[313822267,1707737444089,-500.0,0.0002295,2]
[313822269,1707737444098,-295.88,0.0002295,2]
[313822271,1707737444108,-150.0,0.0002295,2]
[313822273,1707737444117,-500.0,0.0002295,2]
[313822275,1707737444126,-500.0,0.0002295,2]
[313822277,1707737444135,-500.0,0.0002295,2]
[313822279,1707737444144,-500.0,0.0002295,2]
[313822281,1707737444154,-500.0,0.0002295,2]
[313822283,1707737444163,-500.0,0.0002295,2]
[313822285,1707737444175,-165.1,0.0002295,2]
[313822287,1707737444184,-500.0,0.0002295,2]
[313822289,1707737444198,-500.0,0.0002295,2]
[313822291,1707737444208,-500.0,0.0002295,2]
[313822293,1707737444218,-500.0,0.0002295,2]
[313822295,1707737444227,-500.0,0.0002295,2]
[313822297,1707737444236,-500.0,0.0002295,2]
[313822299,1707737444246,-500.0,0.0002295,2]
[313822301,1707737444255,-500.0,0.0002295,2]
[313822303,1707737444265,-500.0,0.0002295,2]
[313822305,1707737444274,-500.0,0.0002295,2]
[313822307,1707737444283,-500.0,0.0002295,2]
[313822309,1707737444292,-500.0,0.0002295,2]
[313822311,1707737444301,-500.0,0.0002295,2]
[313822313,1707737444310,-500.0,0.0002295,2]
[313822315,1707737444318,-410.05932558,0.0002295,2]
[313822317,1707737444327,-377.06,0.0002295,2]
[313822319,1707737444337,-500.0,0.0002295,2]
[313822321,1707737444346,-500.0,0.0002295,2]
[313822323,1707737444356,-500.0,0.0002295,2]
[313822325,1707737444365,-500.0,0.0002295,2]
[313822327,1707737444374,-500.0,0.0002295,2]
[313822329,1707737444383,-500.0,0.0002295,2]
[313822331,1707737444392,-1092.7,0.0002295,2]
[313822333,1707737444401,-500.0,0.0002295,2]
[313822335,1707737444410,-888.74,0.0002295,2]
[313822337,1707737444419,-1939.94,0.0002295,2]
[313822339,1707737444428,-500.0,0.0002295,2]
[313822341,1707737444438,-228.65228561,0.0002295,2]
[313822343,1707737444447,-178.58,0.0002295,2]
[313822345,1707737444457,-500.0,0.0002295,2]
[313822347,1707737444466,-500.0,0.0002295,2]
[313822349,1707737444476,-264.06,0.0002295,2]
[313822351,1707737444485,-500.0,0.0002295,2]
[313822353,1707737444494,-500.0,0.0002295,2]
[313822355,1707737444502,-517.52,0.0002295,2]
[313822357,1707737444511,-500.0,0.0002295,2]
[313822359,1707737444520,-500.0,0.0002295,2]
[313822361,1707737444529,-500.0,0.0002295,2]
[313822363,1707737444538,-3047.29,0.0002295,2]
[313822365,1707737444547,-2545.63,0.0002295,2]
[313822367,1707737444556,-500.0,0.0002295,2]
[313822369,1707737444565,-1202.18,0.0002295,2]
[313822371,1707737444574,-500.0,0.0002295,2]
[313822373,1707737444582,-500.0,0.0002295,2]
[313822375,1707737444591,-500.0,0.0002295,2]
[313822377,1707737444601,-500.0,0.0002295,2]
[313822379,1707737444609,-500.0,0.0002295,2]
[313822381,1707737444618,-745.06,0.0002295,2]
[313822383,1707737444628,-533.9,0.0002295,2]
[313822385,1707737444637,-538.93,0.0002295,2]
[313822387,1707737444646,-500.0,0.0002295,2]
[313822389,1707737444655,-500.0,0.0002295,2]
[313822391,1707737444664,-589.54,0.0002295,2]
[313822393,1707737444673,-500.0,0.0002295,2]
[313822395,1707737444683,-500.0,0.0002295,2]
[313822397,1707737444692,-546.94,0.0002295,2]
[313822399,1707737444701,-500.0,0.0002295,2]
[313822401,1707737444710,-500.0,0.0002295,2]
[313822403,1707737444719,-2790.02,0.0002295,2]
[313822405,1707737444728,-925.4,0.0002295,2]
[313822407,1707737444737,-500.0,0.0002295,2]
[313822409,1707737444746,-500.0,0.0002295,2]
[313822411,1707737444756,-500.0,0.0002295,2]
[313822413,1707737444765,-500.0,0.0002295,2]
[313822415,1707737444774,-500.0,0.0002295,2]
[313822417,1707737444783,-1121.83,0.0002295,2]
[313822419,1707737444793,-2679.66,0.0002295,2]
[313822421,1707737444802,-500.0,0.0002295,2]
[313822423,1707737444811,-2420.76,0.0002295,2]
[313822425,1707737444820,-500.0,0.0002295,2]
[313822427,1707737444829,-500.0,0.0002295,2]
[313822428,1707737444838,-500.0,0.0002295,2]
[313822429,1707737444847,-500.0,0.0002295,2]
[313822430,1707737444856,-500.0,0.0002295,2]
[313822431,1707737444865,-500.0,0.0002295,2]
[313822432,1707737444924,-500.0,0.0002295,2]
[313822433,1707737444933,-658.07,0.0002295,2]
[313822434,1707737444942,-559.11,0.0002295,2]
[313822435,1707737444951,-500.0,0.0002295,2]
[313822436,1707737444960,-322.61,0.0002295,2]
[313822438,1707737444969,-500.0,0.0002295,2]
[313822439,1707737444977,-500.0,0.0002295,2]
[313822441,1707737444987,-1768.87,0.0002295,2]
[313822443,1707737444996,-1249.58,0.0002295,2]
[313822445,1707737445005,-721.91,0.0002295,2]
[313822447,1707737445014,-756.35,0.0002295,2]
[313822449,1707737445023,-3762.26,0.0002295,2]
[313822451,1707737445032,-500.0,0.0002295,2]
[313822453,1707737445041,-1229.32,0.0002295,2]
[313822455,1707737445050,-500.0,0.0002295,2]
[313822457,1707737445059,-2154.87,0.0002295,2]
[313822459,1707737445068,-597.48,0.0002295,2]
[313822461,1707737445077,-1711.34,0.0002295,2]
[313822463,1707737445086,-500.0,0.0002295,2]
[313822465,1707737445094,-500.0,0.0002295,2]
[313822467,1707737445104,-1203.26,0.0002295,2]
[313822469,1707737445113,-500.0,0.0002295,2]
[313822471,1707737445122,-625.64,0.0002295,2]
[313822473,1707737445131,-500.0,0.0002295,2]
[313822475,1707737445140,-500.0,0.0002295,2]
[313822477,1707737445149,-2405.05,0.0002295,2]
[313822480,1707737445158,-1075.67,0.0002295,2]
[313822483,1707737445168,-804.88,0.0002295,2]
[313822485,1707737445178,-692.17,0.0002295,2]
[313822488,1707737445188,-562.81,0.0002295,2]
[313822491,1707737445197,-646.11354181,0.0002295,2]
[313822493,1707737445205,-500.0,0.0002295,2]
[313822495,1707737445213,-689.56,0.0002295,2]
[313822497,1707737445223,-500.0,0.0002295,2]
[313822499,1707737445232,-500.0,0.0002295,2]
[313822500,1707737445241,-649.9,0.0002295,2]
[313822501,1707737445249,-761.78,0.0002295,2]
[313822503,1707737445259,-500.0,0.0002295,2]
[313822505,1707737445268,-500.0,0.0002295,2]
[313822507,1707737445277,-500.0,0.0002295,2]
[313822509,1707737445286,-500.0,0.0002295,2]
[313822511,1707737445295,-500.0,0.0002295,2]
[313822513,1707737445303,-3319.91,0.0002295,2]
[313822515,1707737445312,-480.53,0.0002295,2]
[313822517,1707737445321,-1059.48,0.0002295,2]
[313822520,1707737445330,-500.0,0.0002295,2]
[313822522,1707737445339,-860.12,0.0002295,2]
[313822526,1707737445348,-1053.51,0.0002295,2]
[313822530,1707737445357,-500.0,0.0002295,2]
[313822534,1707737445366,-1159.62,0.0002295,2]
[313822536,1707737445376,-500.0,0.0002295,2]
[313822540,1707737445385,-2198.6,0.0002295,2]
[313822544,1707737445393,-500.0,0.0002295,2]
[313822548,1707737445402,-500.0,0.0002295,2]
[313822551,1707737445411,-500.0,0.0002295,2]
[313822553,1707737445420,-500.0,0.0002295,2]
[313822556,1707737445429,-1018.07,0.0002295,2]
[313822558,1707737445438,-2364.64,0.0002295,2]
[313822560,1707737445447,-3687.56,0.0002295,2]
[313822562,1707737445456,-500.0,0.0002295,2]
[313822564,1707737445465,-500.0,0.0002295,2]
[313822566,1707737445473,-692.69,0.0002295,2]
[313822568,1707737445482,-1261.67,0.0002295,2]
[313822571,1707737445492,-500.0,0.0002295,2]
[313822574,1707737445501,-500.0,0.0002295,2]
[313822577,1707737445510,-500.0,0.0002295,2]
[313822580,1707737445518,-1841.73,0.0002295,2]
[313822583,1707737445527,-500.0,0.0002295,2]
[313822586,1707737445536,-500.0,0.0002295,2]
[313822589,1707737445545,-1226.74,0.0002295,2]
[313822592,1707737445554,-880.68,0.0002295,2]
[313822595,1707737445563,-500.0,0.0002295,2]
[313822598,1707737445571,-500.0,0.0002295,2]
[313822600,1707737445580,-405.33346016,0.0002295,2]
[313822602,1707737445589,-1024.83829461,0.0002295,2]
[313822605,1707737445606,-916.65170539,0.0002295,2]
[313822607,1707737445615,-129.77736216,0.0002295,2]
[313822610,1707737445633,-1176.69046004,0.0002295,2]
[313822613,1707737445661,-2102.7673685,0.0002295,2]
[313822616,1707737445678,-372.46008747,0.0002295,2]
[313822636,1707737445856,-856.04766605,0.0002295,2]
[313822640,1707737445885,-541.91382962,0.000229,2]
[313822642,1707737445894,-231.64098443,0.0002295,2]
[313822644,1707737445906,-521.82739693,0.0002295,2]
[313822647,1707737445917,-3291.39065368,0.0002295,2]
[313822667,1707737446099,-76.43802074,0.0002295,2]
[313822669,1707737446108,-500.0,0.0002295,2]
[313822671,1707737446117,-500.0,0.0002295,2]
[313822673,1707737446126,-500.0,0.0002295,2]
[313822675,1707737446135,-1033.77,0.0002295,2]
[313822677,1707737446144,-500.0,0.0002295,2]
[313822679,1707737446153,-460.00213819,0.0002295,2]
[313822681,1707737446166,-403.34786181,0.0002295,2]
[313822683,1707737446177,-500.0,0.0002295,2]
[313822685,1707737446186,-890.06,0.0002295,2]
[313822687,1707737446195,-500.9,0.0002295,2]
[313822689,1707737446204,-500.0,0.0002295,2]
[313822691,1707737446214,-178.09773854,0.0002295,2]
[313822693,1707737446227,-522.35226146,0.0002295,2]
[313822695,1707737446236,-500.0,0.0002295,2]
[313822697,1707737446245,-500.0,0.0002295,2]
[313822699,1707737446255,-518.49,0.0002295,2]
[313822701,1707737446264,-500.0,0.0002295,2]
[313822703,1707737446273,-500.0,0.0002295,2]
[313822705,1707737446282,-12.78652849,0.0002295,2]
[313822708,1707737446300,-487.21347151,0.0002295,2]
[313822710,1707737446309,-500.0,0.0002295,2]
[313822712,1707737446318,-227.69939273,0.00022951,2]
[313822714,1707737446327,-407.28890979,0.00022951,2]
[313822716,1707737446336,-500.0,0.00022951,2]
[313822718,1707737446345,-426.87593075,0.00022951,2]
[313822720,1707737446357,-73.12406925,0.00022951,2]
[313822722,1707737446366,-493.83204814,0.00022951,2]
[313822724,1707737446375,-500.0,0.00022951,2]
[313822726,1707737446384,-500.0,0.00022951,2]
[313822728,1707737446393,-242.28368973,0.00022951,2]
[313822730,1707737446402,-370.24,0.00022951,2]
[313822732,1707737446411,-500.0,0.00022951,2]
[313822734,1707737446420,-535.44998884,0.00022951,2]
[313822736,1707737446430,-500.0,0.00022951,2]
[313822738,1707737446438,-500.0,0.00022951,2]
[313822740,1707737446448,-500.0,0.00022951,2]
[313822742,1707737446456,-347.02891251,0.00022951,2]
[313822744,1707737446466,-500.0,0.00022951,2]
[313822746,1707737446475,-158.85059765,0.00022951,2]
[313822748,1707737446484,-268.91332971,0.00022951,2]
[313822750,1707737446494,-500.0,0.00022951,2]
[313822752,1707737446503,-500.0,0.00022951,2]
[313822754,1707737446513,-500.0,0.00022951,2]
[313822756,1707737446522,-500.0,0.00022951,2]
[313822757,1707737446531,-500.0,0.00022951,2]
[313822759,1707737446539,-250.0,0.00022951,2]
[313822761,1707737446550,-500.0,0.00022951,2]
[313822764,1707737446560,-176.46609153,0.00022951,2]
[313822765,1707737446569,-500.0,0.00022951,2]
[313822767,1707737446578,-500.0,0.00022951,2]
[313822769,1707737446587,-500.0,0.00022951,2]
[313822771,1707737446596,-500.0,0.00022951,2]
[313822773,1707737446605,-500.0,0.00022951,2]
[313822775,1707737446614,-500.0,0.00022951,2]
[313822777,1707737446623,-500.0,0.00022951,2]
[313822779,1707737446632,-500.0,0.00022951,2]
[313822781,1707737446641,-500.0,0.00022951,2]
[313822783,1707737446650,-500.0,0.00022951,2]
[313822785,1707737446659,-500.0,0.00022951,2]
[313822788,1707737446680,-435.1879772,0.00022951,2]
[313822790,1707737446690,-500.0,0.00022951,2]
[313822792,1707737446699,-500.0,0.00022951,2]
[313822794,1707737446708,-500.0,0.00022951,2]
[313822796,1707737446719,-500.0,0.00022951,2]
[313822798,1707737446729,-500.0,0.00022951,2]
[313822800,1707737446739,-560.7765185,0.00022951,2]
[313822802,1707737446748,-1306.34,0.00022951,2]
[313822804,1707737446758,-500.0,0.00022951,2]
[313822806,1707737446767,-162.11879714,0.00022951,2]
[313822811,1707737446807,-274.35518775,0.00022951,2]
[313822814,1707737446820,-63.52601511,0.00022951,2]
[313822816,1707737446830,-500.0,0.00022951,2]
[313822818,1707737446839,-1846.41,0.00022951,2]
[313822820,1707737446848,-500.0,0.00022951,2]
[313822822,1707737446857,-2091.41,0.00022951,2]
[313822824,1707737446866,-737.39,0.00022951,2]
[313822826,1707737446875,-1301.48,0.00022951,2]
[313822828,1707737446885,-500.0,0.00022951,2]
[313822830,1707737446894,-500.0,0.00022952,2]
[313822832,1707737446903,-500.0,0.00022952,2]
[313822834,1707737446912,-500.0,0.00022952,2]
[313822836,1707737446921,-730.6,0.00022952,2]
[313822838,1707737446930,-3000.0,0.0002296,2]
[313822840,1707737446940,-4159.97297,0.0002297,2]
[313822842,1707737446949,-4047.78372179,0.00022998,2]
[313822844,1707737446961,-3091.22740842,0.00022998,2]
[313822847,1707737446979,-864.21692083,0.00022998,2]
[313822852,1707737447016,-5710.83553016,0.00022998,2]
[313822855,1707737447028,-37289.16446984,0.00022998,2]
[313822857,1707737447039,-444442.23090604,0.00022998,2]
[313822859,1707737447048,-195234.16629756,0.00022999,2]
[313822861,1707737447058,-122825.29499699,0.00022999,2]
[313822863,1707737447067,-193.52727885,0.00022999,2]
[313822865,1707737447076,-300.0,0.00022999,2]
[313822867,1707737447085,-300.0,0.00022999,2]
[313822869,1707737447094,-300.0,0.00022999,2]
[313822871,1707737447103,-300.0,0.00022999,2]